Cogmind - Beta 11 @@@ ROGUE MODE // 2022.03.25 @ 23:46:09 Player: CrossedViper Result: Destroyed by 1C-UTU with 1C-UTU's Sword "Lootmaker" Performance ------------- Evolutions (1) 500 Regions Visited (6) 1200 Robots Destroyed (60) 300 Value Destroyed (1437) 1437 Prototype IDs (29) 580 Alien Tech Used (0) 0 Bonus (311) 311 TOTAL SCORE: 4328 Bonus ------- High Alert Combat Kills 11 Aligned with FarCom 300 Cogmind --------- Core Integrity 0/400 Matter 212/300 Energy 100/100 System Corruption 13% Temperature Cool (0) Movement Hovering (80) Location -8/Mines Parts ------- > --- POWER (1) -------- (None) > --- PROPULSION (3) --- Combat Antigrav System > --- UTILITY (2) ------ (None) > --- WEAPON (3) ------- (None) > --- INVENTORY (5) ---- Reinforced Fission Core Light Treads Large Matter Pod (29) Light Armor Plating Hacking Suite Peak State ------------ > --- POWER ------------ Heavy Ion Engine > --- PROPULSION ------- Light Treads Light Treads Light Treads > --- UTILITY ---------- Large Storage Unit > --- WEAPON ----------- Assault Rifle 8R-AWN's Boregun Field Lobotomy Kit > --- INVENTORY -------- Improved Ion Engine Reinforced Fission Core Light Treads Light Treads Huge Storage Unit Large Matter Pod Targeting Computer Experimental Targeting Computer Power Shielding Light Armor Plating Light Armor Plating Hacking Suite AS-neutralizer No. 17b Light Assault Rifle Rocket Launcher [Rating: 31] Favorites ----------- Power Heavy Ion Engine Engine Heavy Ion Engine Propulsion Light Treads Treads Light Treads Hover Unit Combat Antigrav System Utility Huge Storage Unit Device Cloak of Protection Storage Huge Storage Unit Processor Transport Network Coupler Protection Light Armor Plating Weapon Light Assault Rifle Energy Gun Heavy EM Pulse Gun Ballistic Gun Light Assault Rifle Launcher Rocket Launcher Special Weapon Field Lobotomy Kit Build | -11 -10 -10 -9 -9 -9 -8 ------- Run | Scr Mat Min Mat Min Exi Min Slots Evolved 2 | . . . 2 . . . Power . | . . . . . . . Propulsion 1 | . . . 1 . . . Utility . | . . . . . . . Weapon 1 | . . . 1 . . . Parts Attached 57 | 6 7 . 13 8 19 4 Power 4 | 1 1 . 2 . . . Engine 4 | 1 1 . 2 . . . Core . | . . . . . . . Reactor . | . . . . . . . Propulsion 15 | 2 2 . 5 3 2 1 Treads 14 | 2 2 . 5 3 2 . Leg . | . . . . . . . Wheel . | . . . . . . . Hover 1 | . . . . . . 1 Flight . | . . . . . . . Utility 15 | 1 1 . 2 1 9 1 Device 4 | . . . . . 4 . Storage 5 | 1 1 . . . 3 . Processor 1 | . . . 1 . . . Hackware . | . . . . . . . Protection 5 | . . . 1 1 2 1 Artifact . | . . . . . . . Weapon 23 | 2 3 . 4 4 8 2 Energy Gun 9 | 1 3 . 4 1 . . Energy Cannon . | . . . . . . . Ballistic Gun 11 | 1 . . . 3 6 1 Ballistic Cannon . | . . . . . . . Launcher 2 | . . . . . 1 1 Special Weapon 1 | . . . . . 1 . Impact Weapon . | . . . . . . . Slashing Weapon . | . . . . . . . Piercing Weapon . | . . . . . . . Special Melee Weapon . | . . . . . . . Unidentified Prototypes 4 | . . . 1 . 3 . Corrupted Parts 2 | . . . . . 2 . System Corruption 13 | . . . . . 13 . Parts Lost 15 | . . . . 2 3 10 Power 1 | . . . . . . 1 Propulsion 3 | . . . . . 1 2 Utility 4 | . . . . . 1 3 Weapon 7 | . . . . 2 1 4 Highest Loss Streak 10 | . . . . 2 3 10 To Critical Strikes 3 | . . . . . 3 . Average Slot Usage (%) 92 | . 84 85 97 99 92 85 Engine 11 | . 14 14 11 11 11 11 Treads 31 | . 27 28 33 32 33 25 Storage 11 | . 14 14 11 11 11 11 Processor 1 | . . . 6 2 . . Protection 3 | . . . 1 8 5 7 Energy Gun 12 | . 13 14 26 9 5 . Ballistic Gun 17 | . 14 14 6 23 24 18 Naked Turns . | . . . . . . . Heaviest Build 106 | 13 93 93 99 99 106 100 Greatest Support 60 | 40 40 40 60 60 60 60 Greatest Overweight (x) 2 | . 2 2 1 1 1 1 Average Overweight (x) 1 | . . 2 1 1 . 1 Largest Inventory Capacity 25 | 8 25 25 25 25 25 25 Average Capacity 23 | 6 16 25 25 25 24 24 Most Carried 25 | 2 16 16 25 25 25 20 Average Carried 19 | 1 9 16 20 23 21 18 Final Capacity 25 | 8 25 25 25 25 25 5 Final Carried 25 | 2 16 16 25 22 20 5 Class Distribution -------------------- 38% | Mutant 35% | Tank 13% | Skirmisher 6% | Gunner 3% | Scavenger-Skirmisher Dominant Class ---------------- Mutant | -10/Materials Mutant | -10/Mines Skirmisher | -9/Materials Tank | -9/Mines Tank | -9/Exiles Tank | -8/Mines Resources | -11 -10 -10 -9 -9 -9 -8 ----------- Run | Scr Mat Min Mat Min Exi Min Matter Collected 1462 | 234 115 6 170 243 694 . Remotely . | . . . . . . . Salvage Created 2524 | . 474 87 1280 229 454 . Parts 186 | . 24 2 86 13 61 . Haulers Intercepted 5 | . 1 . 4 . . . Recyclers Shooed 3 | . 1 . 1 1 . . Parts Field Recycled . | . . . . . . . Retrieved Matter . | . . . . . . . Parts Self-Destructed . | . . . . . . . Prevented . | . . . . . . . Kills | -11 -10 -10 -9 -9 -9 -8 ------- Run | Scr Mat Min Mat Min Exi Min Combat Hostiles Destroyed 48 | . 9 2 21 8 8 . Guns 40 | . 9 2 20 8 1 . AOE 7 | . . . . . 7 . Classes Destroyed 13 | . 4 . 4 3 2 . Worker 6 | . 2 . 2 2 . . Builder 1 | . . . . 1 . . Hauler 5 | . 1 . 4 . . . Recycler 1 | . . . 1 . . . Operator 1 | . . . 1 . . . Turret 1 | . . . . . 1 . Watcher 2 | . 1 . 1 . . . Swarmer 7 | . . . 4 3 . . Grunt 25 | . 9 2 11 3 . . Sentry 6 | . . . 6 . . . Demolisher 1 | . . . . 1 . . Zionite 1 | . . . . . 1 . Assembled 8 | . . . . 1 7 . Best Kill Streak 7 | . 5 2 4 3 7 . Combat Bots Only 7 | . 3 2 4 3 7 . Max Kills in Single Turn 3 | . 2 1 2 1 3 . Gunslinging . | . . . . . . . Exploded 3 | . . . . . 3 . Melee . | . . . . . . . Uniques/NPCs Destroyed 4 | . . . . . 4 . 8R-AWN (-9/Exiles) EX-HEX (-9/Exiles) EX-BIN (-9/Exiles) EX-DEC (-9/Exiles) Combat | -11 -10 -10 -9 -9 -9 -8 -------- Run | Scr Mat Min Mat Min Exi Min Damage Taken 3201 | . 417 23 710 358 888 805 Core 527 | . 116 10 118 12 125 146 Absorbed by Shields 62 | . . . . . 62 . Regen/Repaired (Parts) 111 | . . . 111 . . . Core Remaining (%) 74 | 100 . 49 . . . . Volleys Fired 233 | . 33 4 56 30 110 . Largest 3 | . 2 2 3 3 3 . Hottest 135 | . 70 70 135 135 66 . Shots Fired 490 | . 66 8 165 88 163 . Gun 480 | . 66 8 165 88 153 . Cannon . | . . . . . . . Launcher 5 | . . . . . 5 . Special 5 | . . . . . 5 . Kinetic 298 | . 33 4 44 64 153 . Thermal 90 | . 33 4 45 8 . . Explosive 5 | . . . . . 5 . Electromagnetic 92 | . . . 76 16 . . Robot Hit Streak 27 | . 14 6 27 14 12 . Robot Miss Streak 4 | . 4 1 2 3 4 . Penetration Max 1 | . . . . . 1 . Secondary Targets 4 | . . . 2 2 . . Max Gunslinging Chain 1 | . . . 1 1 . . Shots Hit Robots 325 | . 43 5 102 52 123 . Core Hits 135 | . 26 3 47 19 40 . Critical Kills 3 | . . . . . 3 . Critical Parts Destroyed 7 | . 1 . . . 6 . Critical Strikes 18 | . 6 . 3 . 9 . Burn 7 | . 5 . 2 . . . Destroy 10 | . 1 . . . 9 . Corrupt 1 | . . . 1 . . . Melee Attacks . | . . . . . . . Impact . | . . . . . . . Slashing . | . . . . . . . Piercing . | . . . . . . . Sneak Attacks . | . . . . . . . Combat Hostiles . | . . . . . . . Follow-up Attacks . | . . . . . . . Damage Inflicted 4988 | . 559 66 1620 727 2016 . Guns 4181 | . 505 57 1401 645 1573 . Cannons . | . . . . . . . Explosions 584 | . . . 141 . 443 . Melee . | . . . . . . . Ramming 223 | . 54 9 78 82 . . Kinetic 2422 | . 192 17 189 451 1573 . Thermal 965 | . 313 40 525 87 . . Explosive 443 | . . . . . 443 . Electromagnetic 935 | . . . 828 107 . . Impact . | . . . . . . . Slashing . | . . . . . . . Piercing . | . . . . . . . Highest Corruption 13 | . . . . . 13 13 Average Corruption 12 | . . . . . 12 13 Corruption Purged . | . . . . . . . Corruption Blocked . | . . . . . . . Effects 47 | . . . . . 46 1 Message Errors 7 | . . . . . 7 . Matter Fused 15 | . . . . . 14 1 Heat Flow Errors 8 | . . . . . 8 . Energy Discharges 5 | . . . . . 5 . Data Loss (minor) 5 | . . . . . 5 . Data Loss (major) 2 | . . . . . 2 . Misfires 1 | . . . . . 1 . Alerts 1 | . . . . . 1 . Weapon Failures 3 | . . . . . 3 . Overload Shots . | . . . . . . . Overflow Damage 14 | . . . . . 14 . Projectiles . | . . . . . . . Explosions 14 | . . . . . 14 . Melee . | . . . . . . . Knockbacks 1 | . . . . 1 . . Impact 1 | . . . . 1 . . Kinetic . | . . . . . . . Secondary . | . . . . . . . Self-Inflicted Damage 32 | . . . 32 . . . Shots 1 | . . . 1 . . . Rammed 21 | . 6 3 7 5 . . Targets Rammed 25 | . 7 3 7 8 . . Kicked . | . . . . . . . Crushed 4 | . 1 . . 3 . . Highest Temperature 342 | . 201 135 294 342 202 8 Average Temperature 93 | . 70 74 103 110 73 8 Received Heat Transfer 690 | . 180 15 273 87 . 135 Effects 9 | . . . 8 1 . . Energy Bleed 3 | . . . 3 . . . Interference 5 | . . . 5 . . . Matter Decay 1 | . . . . 1 . . Siege Activations . | . . . . . . . Robots Corrupted 1 | . . . 1 . . . Combat Hostiles 1 | . . . 1 . . . Parts Fried 3 | . . . 3 . . . Impact Corruptions . | . . . . . . . Robots Melted . | . . . . . . . Combat Hostiles . | . . . . . . . Parts Melted 2 | . 2 . . . . . Heat Transferred 2938 | . 1258 111 1421 148 . . Parts Sabotaged . | . . . . . . . Parts Stolen . | . . . . . . . Parts Stripped . | . . . . . . . Power Chain Reactions 4 | . . . 4 . . . Missiles Intercepted . | . . . . . . . Alert | -11 -10 -10 -9 -9 -9 -8 ------- Run | Scr Mat Min Mat Min Exi Min Peak Influence 448 | . 204 50 448 199 . 15 Initial 99 | . . 11 . 99 . . Average 100 | . 96 25 219 49 . 8 Maximum Alert Level 2 | . 1 . 2 . . . Low Security (%) 84 | 100 98 100 47 100 . 100 Level 1 13 | . 1 . 47 . . . Level 2 1 | . . . 5 . . . Level 3 . | . . . . . . . Level 4 . | . . . . . . . Level 5 . | . . . . . . . High Security . | . . . . . . . Max Security . | . . . . . . . Squads Dispatched 8 | . 3 . 5 . . . Investigation 4 | . 1 . 3 . . . Extermination . | . . . . . . . Reinforcement 4 | . 2 . 2 . . . Assault . | . . . . . . . Garrison . | . . . . . . . Intercept . | . . . . . . . Searches Triggered . | . . . . . . . Construction Impeded . | . . . . . . . Haulers Reinforced . | . . . . . . . Active Scanning Responses . | . . . . . . . Cargo Convoy Interrupts . | . . . . . . . Stealth | -11 -10 -10 -9 -9 -9 -8 --------- Run | Scr Mat Min Mat Min Exi Min Distress Signals 2 | . 2 . . . . . Communications Jammed . | . . . . . . . Distress Signals . | . . . . . . . Times Spotted 89 | . 22 2 25 15 21 4 Peak Tracking Total 9 | . 5 2 4 6 9 4 Tactical Retreats 13 | . 1 . 2 1 9 . Traps | -11 -10 -10 -9 -9 -9 -8 ------- Run | Scr Mat Min Mat Min Exi Min Traps Triggered 4 | . 2 . 1 . 1 . Indirectly . | . . . . . . . Trap Hack Attempts . | . . . . . . . Triggered . | . . . . . . . Disarmed . | . . . . . . . Reprogrammed . | . . . . . . . Reused . | . . . . . . . Traps Extracted . | . . . . . . . Installed 1 | . . . . . 1 . Triggered . | . . . . . . . Most Traps Carried 2 | . . . . 2 2 . Machines | -11 -10 -10 -9 -9 -9 -8 ---------- Run | Scr Mat Min Mat Min Exi Min Machines Disabled 9 | . . . 2 2 5 . Max in Single Turn 1 | . . . 1 1 1 . Machines Sabotaged . | . . . . . . . Garrisons Compromised . | . . . . . . . Overloaded Fab Kills . | . . . . . . . Hacking | -11 -10 -10 -9 -9 -9 -8 --------- Run | Scr Mat Min Mat Min Exi Min Machines Accessed 13 | . 4 . 6 1 2 . Terminals 8 | . 4 . 3 1 . . Fabricators . | . . . . . . . Repair Stations 1 | . . . 1 . . . Recycling Units 2 | . . . 2 . . . Scanalyzers . | . . . . . . . Garrison Access . | . . . . . . . Total Hacks 28 | . 12 . 12 2 2 . Successful 15 | . 5 . 8 . 2 . Failed 12 | . 6 . 4 2 . . Catastrophic 2 | . 1 . 1 . . . Database Lockouts 1 | . 1 . . . . . Manual 18 | . 10 . 7 . 1 . Terminals 21 | . 12 . 7 2 . . Fabricators . | . . . . . . . Repair Stations 3 | . . . 3 . . . Recycling Units 2 | . . . 2 . . . Scanalyzers . | . . . . . . . Garrison Access . | . . . . . . . Terminal Hacks 11 | . 5 . 4 . 2 . Record 1 | . . . . . 1 . Part Schematic 1 | . . . 1 . . . Robot Analysis 3 | . 2 . 1 . . . Prototype ID Bank 1 | . 1 . . . . . Terminal Index 1 | . 1 . . . . . Unreport Threat 1 | . . . 1 . . . Locate Traps 1 | . . . 1 . . . Hauler Manifests 1 | . 1 . . . . . EX-Prototype ID Bank 1 | . . . . . 1 . Fabricator Hacks . | . . . . . . . Repair Station Hacks 2 | . . . 2 . . . Scan Component 1 | . . . 1 . . . Repair 1 | . . . 1 . . . Recycling Unit Hacks . | . . . . . . . Scanalyzer . | . . . . . . . Garrison Access Hacks . | . . . . . . . Unauthorized Hacks 2 | . . . 2 . . . Terminals . | . . . . . . . Fabricators . | . . . . . . . Repair Stations . | . . . . . . . Recycling Units 2 | . . . 2 . . . Tunnel 2 | . . . 2 . . . Scanalyzers . | . . . . . . . Garrison Access . | . . . . . . . Data Cores Recovered . | . . . . . . . Used . | . . . . . . . Hacking Detections 7 | . 3 . 3 1 . . Full Trace Events 1 | . 1 . . . . . Feedback Events . | . . . . . . . Feedback Blocked . | . . . . . . . Robot Schematics Acquired . | . . . . . . . Robots Built . | . . . . . . . Authchips . | . . . . . . . Time . | . . . . . . . Total Robot Build Rating . | . . . . . . . Part Schematics Acquired 1 | . . . 1 . . . Parts Built . | . . . . . . . Authchips . | . . . . . . . Time . | . . . . . . . Total Part Build Rating . | . . . . . . . Parts Repaired 1 | . . . 1 . . . Time 26 | . . . 26 . . . Parts Recycled . | . . . . . . . Recycled Matter . | . . . . . . . Retrieved Matter . | . . . . . . . Retrieved Components . | . . . . . . . Parts Scanalyzed . | . . . . . . . Part Schematics Acquired . | . . . . . . . Parts Damaged . | . . . . . . . Bothacking | -11 -10 -10 -9 -9 -9 -8 ------------ Run | Scr Mat Min Mat Min Exi Min Used RIF Installer . | . . . . . . . Robots Hacked . | . . . . . . . Non-combat . | . . . . . . . Combat . | . . . . . . . Robot Hacks Applied . | . . . . . . . Relay Couplers Released . | . . . . . . . Fabnet Peak Effective % . | . . . . . . . Robots Rewired . | . . . . . . . Allies Hacked . | . . . . . . . Hacks Repelled . | . . . . . . . Allies | -11 -10 -10 -9 -9 -9 -8 -------- Run | Scr Mat Min Mat Min Exi Min Total Allies 7 | . . . . 4 3 . Largest Group 3 | . . . . 3 3 1 Highest-Rated Group 43 | . . . . 40 43 14 Highest-Rated Ally 31 | . . . . 31 18 14 Total Orders . | . . . . . . . Ally Attacks 23 | . . . . 23 . . Total Damage 239 | . . . . 239 . . Kills 3 | . . . . 3 . . Allies Corrupted . | . . . . . . . Allies Melted 1 | . . . . 1 . . Field Lobotomies 3 | . . . . . 3 . Intel | -11 -10 -10 -9 -9 -9 -8 ------- Run | Scr Mat Min Mat Min Exi Min Robot Analysis Total 3 | . 2 . 1 . . . Derelict Logs Recovered 3 | . . 2 . 1 . . Drone Launches . | . . . . . . . Drone Recoveries . | . . . . . . . Exploration | -11 -10 -10 -9 -9 -9 -8 ------------- Run | Scr Mat Min Mat Min Exi Min Turns Passed 7150 | 82 890 930 1411 1611 2200 26 Spaces Moved 2534 | 48 320 284 471 610 793 8 Core 5 | 5 . . . . . . Treads 2529 | 43 320 284 471 610 793 8 Legs . | . . . . . . . Wheels . | . . . . . . . Hover . | . . . . . . . Flight . | . . . . . . . Fastest Speed 50 | 50 160 320 240 240 160 240 Average Speed 243 | 148 225 320 240 240 233 240 Slowest Speed 320 | 160 320 320 240 240 240 240 Overloaded Moves . | . . . . . . . Propulsion Burnouts . | . . . . . . . Robots Hopped . | . . . . . . . Cave-ins Triggered . | . . . . . . . Exploration Rate (%) 51 | 4 50 75 52 89 90 3 Regions Visited 6 Branch Regions 4 Pre-discovered Areas 3 | . . . 2 . 1 . Known Exits Taken . | . . . . . . . Unknown Exits Taken 6 | 1 1 1 1 1 1 . Scrap Searched 3 | . . 1 . 2 . . Spaces Dug . | . . . . . . . Terrain Destroyed 47 | . . . 14 . 33 . Melee . | . . . . . . . Projectile 8 | . . . . . 8 . AOE 38 | . . . 14 . 24 . Terrain Rammed . | . . . . . . . Walls Destroyed . | . . . . . . . Machines Disabled . | . . . . . . . Actions | -11 -10 -10 -9 -9 -9 -8 --------- Run | Scr Mat Min Mat Min Exi Min Total 3101 | 56 422 293 627 689 1000 14 Wait 151 | . 38 3 57 21 32 . Move 2528 | 47 319 283 470 609 792 8 Hop . | . . . . . . . Pick Up 61 | 3 15 . 17 6 20 . Fast Attach 18 | 5 5 . 3 . 5 . Attach 27 | 1 1 . 8 8 7 2 Detach 3 | . 1 . . . 2 . Swap 12 | . 1 . 2 . 7 2 Drop 42 | . 2 . 7 7 24 2 Fire 233 | . 33 4 56 30 110 . Melee . | . . . . . . . Ram . | . . . . . . . Kick . | . . . . . . . Crush 25 | . 7 3 7 8 . . Escape Stasis . | . . . . . . . Rewire . | . . . . . . . Trap 1 | . . . . . 1 . Miscellaneous . | . . . . . . . Route ------- -11/Scrapyard -10/Materials (discovered 2 exits: *Mat / [*Min]) -10/Mines (discovered 2 exits: *Mat x2) -9/Materials (discovered 4 exits: *Mat x2 / *Min / [*Sto]) -9/Mines (discovered 3 exits: *Mat x2 / *Exi) -9/Exiles -8/Mines History --------- Turn | Location | Event 3 | -11/Scrapyard | Discovered new exit (range 15) 83 | -11/Scrapyard | Entered Materials 135 | -10/Materials | Discovered new exit (range 15) 312 | -10/Materials | Build established: Mutant 411 | -10/Materials | Central database locked down 415 | -10/Materials | Discovered new exit (range 3) 973 | -10/Materials | Entered Mines 976 | -10/Mines | Met a Derelict bent on vengeance 1140 | -10/Mines | Learned Materials non-interactive machine intel 1156 | -10/Mines | Discovered new exit (range 14) 1388 | -10/Mines | Core integrity fell below 50% 1842 | -10/Mines | Learned 2 Materials zone layouts 1864 | -10/Mines | Discovered new exit (range 11) 1903 | -10/Mines | Entered Materials 1903 | -9/Materials | Evolved 2 slots: Propulsion x1, Weapon x1 1904 | -9/Materials | Identified exit to Materials 1905 | -9/Materials | Loaded intel: 36 non-interactive machine locations 2132 | -9/Materials | Repaired Lgt. Treads 2203 | -9/Materials | Build established: Gunner 2203 | -9/Materials | Discovered new exit (range 11) 2478 | -9/Materials | Discovered new exit (range 8) 2708 | -9/Materials | Discovered exit to Materials (range 16) 3070 | -9/Materials | Build established: Skirmisher 3314 | -9/Materials | Entered Mines 3594 | -9/Mines | Assisted by bots powering up and referring to "LRC-V3" 3686 | -9/Mines | Assembled infested the area 3788 | -9/Mines | Found a hidden stash of uninstalled traps 3876 | -9/Mines | Discovered exit to Materials (range 7) 4011 | -9/Mines | Build established: Tank 4027 | -9/Mines | Escorted by a lone wolf Derelict 4535 | -9/Mines | Learned Materials interactive machine intel 4568 | -9/Mines | Discovered exit to Materials (range 3) 4916 | -9/Mines | Deemed a non-threat by the Exiles lab entrance 4916 | -9/Mines | Discovered new exit (range 5) 4925 | -9/Mines | Entered Exiles 4983 | -9/Exiles | Met 8R-AWN 5024 | -9/Exiles | Met EX-HEX 5264 | -9/Exiles | Met EX-DEC 5276 | -9/Exiles | Learned location of Zion (-7) 5674 | -9/Exiles | Met EX-BIN 5709 | -9/Exiles | Aligned with FarCom system 5711 | -9/Exiles | Given EX-Vault access code 5766 | -9/Exiles | Opened EX-Vault 5781 | -9/Exiles | Found Field Lobotomy Kit 5792 | -9/Exiles | Found Cloak of Protection 5841 | -9/Exiles | Warned to stay clear of 0b10 Research branches 5982 | -9/Exiles | Attacked by the Exiles 6030 | -9/Exiles | System corruption reached 10% 6034 | -9/Exiles | Destroyed 7 combat bots 6164 | -9/Exiles | Destroyed 8R-AWN 6172 | -9/Exiles | Found Prototype Processor 6178 | -9/Exiles | Found Prototype Device 6178 | -9/Exiles | Identified AS-neutralizer No. 17b 6183 | -9/Exiles | Lost 3 parts (1n1u1w) 6194 | -9/Exiles | Found Prototype Ballistic Gun 6194 | -9/Exiles | Identified 8R-AWN's Boregun 6321 | -9/Exiles | Core integrity fell below 50% 6482 | -9/Exiles | Destroyed EX-HEX 6496 | -9/Exiles | Destroyed EX-BIN 6522 | -9/Exiles | Assimilated ZX-C33 with FLK Orb 6525 | -9/Exiles | Assimilated H5-MH5(z) with FLK Orb 6528 | -9/Exiles | Assimilated GM-J5T with FLK Orb 6604 | -9/Exiles | Destroyed EX-DEC 6620 | -9/Exiles | Found Prototype Processor 6690 | -9/Exiles | Build established: Mutant 7096 | -9/Exiles | Discovered new exit (range 14) 7125 | -9/Exiles | Entered Mines 7125 | -8/Mines | Accompanied by 1 ally 7136 | -8/Mines | 1C-UTU came to Exiles' defense 7143 | -8/Mines | Core integrity fell below 20% 7151 | -8/Mines | Destroyed by 1C-UTU with 1C-UTU's Sword "Lootmaker" Last Messages --------------- 07140_ 1C-UTU follow-up attacks with Prototype Slashing Weapon. 07141_ Lgt. Armor Plating destroyed. 07141_ Hvy. Assault Rifle destroyed. 07143_ 1C-UTU follow-up attacks with Prototype Slashing Weapon. 07143_ B-36 Bruiser destroyed. 07145_ Rocket Launcher destroyed. 07146_ G-47 Trooper suffers critical hit (Destroy). 07146_ G-47 Trooper destroyed. 07148_ Lgt. Treads destroyed. 07148_ 1C-UTU follow-up attacks with Prototype Slashing Weapon. 07150_ Dropped Huge Storage Unit. 07150_ Prototype Processor crushed and broken. 07150_ Lgt. Treads crushed and broken. 07150_ Power Shielding crushed and broken. 07150_ Imp. Armor Integrity Analyzer crushed and broken. 07150_ Dropped Lgt. Treads. 07150_ Lgt. Treads crushed and broken. 07151_ 8R-AWN's Boregun destroyed. 07151_ Hvy. Ion Engine destroyed. 07151_ 1C-UTU follow-up attacks with Prototype Slashing Weapon. Map ----- +----------------------------------------------------+ | | | | | | | | | ???????????????????????????????? | | ???????????????????????????????? | | ???????????????????????????????? | | ???????????????????????????????? | | ???????????????????????????????? | | ???????????????????????????????? | | ???????????????????????????????? | | ???????????????????????????????? | | ???????????????????????????????? | | ???????????????????????????????? | | ???????????????????????????????? | | ???????????????????????????????? | | ???????????????????????????????? | | ???????????????????????????????? | | ???????????????????????????????? | | ???????????????????????????????? | | ???????????????????????????????? | | ???????????????????????????????? | | ???????????????????????????????? | | ???????????????????????????????? | | ??????????????????????########?? | | ???????????????########/l@!g!#?? | | ???????????????# ==%*"""*#?? | | ???????????????# ######=%"""=#?? | | ??????????????????????#=!""" #?? | | ??????????????????????# [ #?? | | ??????????????????????#### ###?? | | ?????????????????????????? #???? | | ??????????????????????????z#???? | | ?????????????????????????? #???? | | ??????????????????????????##???? | | ???????????????????????????????? | | ???????????????????????????????? | | ???????????????????????????????? | | ???????????????????????????????? | | ???????????????????????????????? | | ???????????????????????????????? | | ???????????????????????????????? | | ???????????????????????????????? | | ???????????????????????????????? | | ???????????????????????????????? | | ???????????????????????????????? | | ???????????????????????????????? | | ???????????????????????????????? | | ???????????????????????????????? | | ???????????????????????????????? | +----------------------------------------------------+ Best States ------------- Heat Dissipation 28 Energy Generation 14 Energy Capacity 280 Matter Stores 300 Matter Capacity 450 Sight Range 16 Terrain Scan Density 10 Cloak Strength 5 Armor Coverage 150 Evasion (%) 40 Recoil Reduction 3 Item Schematics ----------------- Huge Storage Unit | -9/Materials | Hacked Robot Schematics ------------------ None Fabricated ------------ Nothing Alien Tech Used ----------------- None Achievements -------------- None Challenges ------------ None Game ------ Seed ShadeHugeLaser Manual? 0 Play Time 00:27:12 Cumulative 577.8 hours Start 2022.03.25 @ 23:17:11 End 2022.03.25 @ 23:46:09 Sessions 1 Manual Loads 0 Difficulty Rogue Special Mode None Game No. 402 Rogue 395 Adventurer 0 Explorer 7 Win Type - Total 34 Types 10/4/13/2/0/1/2/1/1 Lore% 84 Gallery% 93 Achievement% 81 Wizard Run 0 Options --------- ASCII 0 Keyboard 0 Movement Numpad Keybinds 0 Fullscreen 1 Font 18/X11Bold Map View 76x50 Tactical HUD 1 Map Filters NONE Filters NONE Steam 1 RUN: 49abd245-43c4-4ca4-803c-b7531505bece